Cogmind - Beta 13 @@@ ROGUE MODE // 2024.04.01 @ 22:34:42 Player: JetmanJay Result: Destroyed by G-47 Trooper with Particle Gun Performance ------------- Evolutions (2) 1000 Regions Visited (4) 800 Robots Destroyed (49) 245 Value Destroyed (925) 925 Prototype IDs (0) 0 Alien Tech Used (0) 0 Bonus (183) 183 TOTAL SCORE: 3153 Bonus ------- High Alert Combat Kills 73 Follower Combat Kills 196 Friendly Fire -86 Cogmind --------- Core Integrity 0/550 Matter 161/300 Energy 70/100 System Corruption 0% Temperature Cool (9) Movement Core (50) Location -8/Materials Parts ------- > --- POWER (2) -------- (None) > --- PROPULSION (2) --- (None) > --- UTILITY (4) ------ (None) > --- WEAPON (3) ------- (None) > --- INVENTORY (5) ---- Large Matter Pod (150) Advanced Targeting Computer Light Armor Plating Improved Assault Rifle Peak State ------------ > --- POWER ------------ Ion Engine > --- PROPULSION ------- Aluminum Leg Improved Aluminum Leg > --- UTILITY ---------- Heat Sink Large Storage Unit Powered Armor Shield Generator > --- WEAPON ----------- Minigun Minigun High-powered Shotgun > --- INVENTORY -------- Large Matter Pod Structural Scanner Terrain Scanner Advanced Targeting Computer Light Armor Plating Medium Armor Plating Powered Armor Heavy Assault Rifle Heavy Assault Rifle Heavy Assault Rifle Improved Assault Rifle Minigun Minigun [Rating: 23] Favorites ----------- Power Ion Engine Engine Ion Engine Propulsion Wheel Leg Improved Aluminum Leg Wheel Wheel Utility Heat Sink Device Heat Sink Storage Large Storage Unit Processor Improved Targeting Computer Protection Core Shielding Weapon Heavy Assault Rifle Energy Gun Medium Laser Ballistic Gun Heavy Assault Rifle Launcher Grenade Launcher Build | -11 -10 -10 -9 -8 ------- Run | Yrd Mat Min Mat Mat Slots Evolved 4 | . . . 2 2 Power 1 | . . . . 1 Propulsion . | . . . . . Utility 2 | . . . 2 . Weapon 1 | . . . . 1 Parts Attached 31 | 6 5 1 12 7 Power 3 | 1 2 . . . Engine 3 | 1 2 . . . Core . | . . . . . Reactor . | . . . . . Propulsion 4 | 2 . . 2 . Treads . | . . . . . Leg 2 | . . . 2 . Wheel 2 | 2 . . . . Hover . | . . . . . Flight . | . . . . . Utility 11 | 1 1 1 5 3 Device 5 | 1 . 1 3 . Storage 1 | . . . 1 . Processor 1 | . . . 1 . Hackware . | . . . . . Protection 4 | . 1 . . 3 Artifact . | . . . . . Weapon 13 | 2 2 . 5 4 Energy Gun 1 | 1 . . . . Energy Cannon . | . . . . . Ballistic Gun 9 | 1 . . 4 4 Ballistic Cannon . | . . . . . Launcher 3 | . 2 . 1 . Special Weapon . | . . . . . Impact Weapon . | . . . . . Slashing Weapon . | . . . . . Piercing Weapon . | . . . . . Special Melee Weapon . | . . . . . Unidentified Prototypes . | . . . . . Parts Lost 14 | . . . 3 11 Power 1 | . . . . 1 Propulsion 3 | . . . 1 2 Utility 6 | . . . 1 5 Weapon 4 | . . . 1 3 Highest Loss Streak 11 | . . . 1 11 To Critical Strikes . | . . . . . Average Slot Usage (%) 93 | . 96 100 99 72 Engine 11 | . 14 14 11 8 Leg 6 | . . . 6 15 Wheel 15 | . 28 28 14 . Device 16 | . 14 14 17 16 Storage 7 | . . . 11 8 Processor 5 | . . . 10 . Protection 7 | . 12 14 4 8 Ballistic Gun 13 | . . . 19 16 Launcher 8 | . 26 28 2 . Naked Turns 4 | . . . . 4 Heaviest Build 47 | 7 13 13 34 47 Greatest Support 23 | 20 20 20 23 23 Greatest Overweight (x) 10 | . . . 3 10 Average Overweight (x) . | . . . 1 1 Largest Inventory Capacity 15 | 5 5 5 15 15 Average Capacity 11 | 5 5 5 15 14 Most Carried 14 | 2 5 5 13 14 Average Carried 7 | . 4 5 7 11 Final Capacity 15 | 5 5 5 15 5 Final Carried 12 | . 5 5 12 4 Class Distribution -------------------- 98% | Mutant Dominant Class ---------------- Mutant | -10/Materials Mutant | -10/Mines Mutant | -9/Materials Mutant | -8/Materials Resources | -11 -10 -10 -9 -8 ----------- Run | Yrd Mat Min Mat Mat Matter Collected 1268 | 262 88 102 546 270 Remotely . | . . . . . Salvage Created 1208 | 48 158 121 569 312 Parts 81 | 2 16 5 39 19 Haulers Intercepted 2 | . 1 . . 1 Recyclers Shooed 5 | . 2 . 1 2 Parts Field Recycled . | . . . . . Retrieved Matter . | . . . . . Parts Self-Destructed . | . . . . . Prevented . | . . . . . Kills | -11 -10 -10 -9 -8 ------- Run | Yrd Mat Min Mat Mat Combat Hostiles Destroyed 31 | 1 6 2 13 9 Guns 21 | 1 . . 11 9 AOE 10 | . 6 2 2 . Classes Destroyed 10 | 1 6 1 2 . Worker 4 | . 2 . . 2 Builder 2 | . 1 . 1 . Tunneler 1 | . . 1 . . Hauler 2 | . 1 . . 1 Recycler 3 | . 1 1 1 . Watcher 5 | . 2 . 3 . Swarmer 16 | . 6 . 4 6 Grunt 12 | 1 . 2 7 2 Sentry 3 | . . . 2 1 Zionite 1 | . . . 1 . Best Kill Streak 6 | 1 6 4 5 6 Combat Bots Only 3 | 1 3 2 3 3 Max Kills in Single Turn 4 | 1 4 3 2 2 Gunslinging . | . . . . . Exploded 2 | . 2 1 2 . Melee . | . . . . . Uniques/NPCs Destroyed . | . . . . . Combat | -11 -10 -10 -9 -8 -------- Run | Yrd Mat Min Mat Mat Hostile Shots Fired 284 | 2 19 2 63 198 Missed 82 | . 7 1 12 62 Damage Taken 2630 | 22 186 41 508 1873 Core 762 | . 58 20 128 556 Absorbed by Shields 208 | . . . 39 169 Redirected to Shielding 38 | . 10 4 24 . Core Remaining (%) 78 | 100 . 68 68 . Volleys Fired 103 | 2 8 2 38 53 Largest 3 | 2 2 2 2 3 Hottest 75 | 70 60 60 60 75 Shots Fired 195 | 4 16 4 76 95 Gun 169 | 4 . . 70 95 Cannon . | . . . . . Launcher 26 | . 16 4 6 . Special . | . . . . . Kinetic 167 | 2 . . 70 95 Thermal 2 | 2 . . . . Explosive 26 | . 16 4 6 . Electromagnetic . | . . . . . Robot Hit Streak 7 | 2 3 5 6 7 Robot Miss Streak 5 | 2 2 . 4 5 Penetration Max . | . . . . . Secondary Targets 5 | . . . 3 2 Max Gunslinging Chain 1 | . . . 1 1 Shots Hit Robots 107 | 2 5 2 46 52 Core Hits 73 | 2 18 7 27 19 Critical Kills . | . . . . . Critical Parts Destroyed 2 | . . . 1 1 Critical Strikes 2 | . . . 1 1 Destroy 2 | . . . 1 1 Melee Attacks . | . . . . . Impact . | . . . . . Slashing . | . . . . . Piercing . | . . . . . Sneak Attacks . | . . . . . Combat Hostiles . | . . . . . Follow-up Attacks . | . . . . . Damage Inflicted 2844 | 19 590 225 1008 1002 Guns 1672 | 19 . . 659 994 Cannons . | . . . . . Explosions 1156 | . 590 225 341 . Melee . | . . . . . Ramming 16 | . . . 8 8 Kinetic 1659 | 6 . . 659 994 Thermal 13 | 13 . . . . Explosive 1156 | . 590 225 341 . Electromagnetic . | . . . . . Impact . | . . . . . Slashing . | . . . . . Piercing . | . . . . . Highest Corruption . | . . . . . Average Corruption . | . . . . . Corruption Purged . | . . . . . Corruption Blocked . | . . . . . Overload Shots . | . . . . . Overflow Damage 7 | . 2 . 5 . Projectiles . | . . . . . Explosions 7 | . 2 . 5 . Melee . | . . . . . Knockbacks . | . . . . . Impact . | . . . . . Kinetic . | . . . . . Secondary . | . . . . . Self-Inflicted Damage 177 | . 89 24 64 . Shots 10 | . 5 1 4 . Rammed 1 | . . . 1 . Targets Rammed 5 | . . . 2 3 Kicked 4 | . . . 1 3 Crushed . | . . . . . Highest Temperature 52 | 52 . . . 30 Average Temperature 15 | 30 . . . 10 Received Heat Transfer 484 | 12 . 9 109 354 Siege Activations . | . . . . . Robots Corrupted . | . . . . . Combat Hostiles . | . . . . . Parts Fried . | . . . . . Impact Corruptions . | . . . . . Robots Melted . | . . . . . Combat Hostiles . | . . . . . Parts Melted . | . . . . . Heat Transferred 37 | 37 . . . . Parts Sabotaged . | . . . . . Parts Stolen . | . . . . . Parts Stripped . | . . . . . Power Chain Reactions . | . . . . . Alert | -11 -10 -10 -9 -8 ------- Run | Yrd Mat Min Mat Mat Peak Influence 655 | 20 305 202 655 451 Initial 219 | . 13 118 78 219 Average 337 | 4 134 126 467 344 Maximum Alert Level 2 | . 1 1 2 2 Low Security (%) 28 | 100 74 90 7 . Level 1 25 | . 25 9 17 60 Level 2 45 | . . . 75 39 Level 3 . | . . . . . Level 4 . | . . . . . Level 5 . | . . . . . High Security . | . . . . . Max Security . | . . . . . Squads Dispatched 5 | . . . 3 2 Investigation 2 | . . . 2 . Extermination . | . . . . . Reinforcement 1 | . . . . 1 Assault 1 | . . . 1 . Garrison 1 | . . . . 1 Intercept . | . . . . . Searches Triggered . | . . . . . Construction Impeded . | . . . . . Haulers Reinforced . | . . . . . Active Scanning Responses . | . . . . . Cargo Convoy Interrupts . | . . . . . Stealth | -11 -10 -10 -9 -8 --------- Run | Yrd Mat Min Mat Mat Distress Signals 5 | . 2 . 1 2 Communications Jammed . | . . . . . Distress Signals . | . . . . . Times Spotted 65 | 1 8 2 35 19 Peak Tracking Total 8 | 1 4 2 5 8 Tactical Retreats 4 | . . . 3 1 Traps | -11 -10 -10 -9 -8 ------- Run | Yrd Mat Min Mat Mat Traps Triggered 1 | . . . 1 . Indirectly . | . . . . . Trap Hack Attempts . | . . . . . Triggered . | . . . . . Disarmed . | . . . . . Reprogrammed . | . . . . . Reused . | . . . . . Traps Extracted . | . . . . . Installed . | . . . . . Triggered . | . . . . . Machines | -11 -10 -10 -9 -8 ---------- Run | Yrd Mat Min Mat Mat Machines Disabled 6 | . 2 . 4 . Max in Single Turn 2 | . 1 . 2 . Machines Repaired . | . . . . . Machines Dismantled . | . . . . . Machines Sabotaged . | . . . . . Overloaded Fab Kills . | . . . . . Hacking | -11 -10 -10 -9 -8 --------- Run | Yrd Mat Min Mat Mat Machines Accessed 5 | . 3 . 2 . Terminals 2 | . 2 . . . Fabricators . | . . . . . Repair Stations . | . . . . . Recycling Units 2 | . 1 . 1 . Scanalyzers 1 | . . . 1 . Garrison Access . | . . . . . Total Hacks 24 | . 11 . 13 . Successful 18 | . 8 . 10 . Failed 6 | . 3 . 3 . Catastrophic . | . . . . . Database Lockouts . | . . . . . Manual . | . . . . . Terminals 6 | . 6 . . . Fabricators . | . . . . . Repair Stations . | . . . . . Recycling Units 8 | . 5 . 3 . Scanalyzers 10 | . . . 10 . Garrison Access . | . . . . . Terminal Hacks 4 | . 4 . . . Record 2 | . 2 . . . Alert Level 1 | . 1 . . . Surveillance Status 1 | . 1 . . . Fabricator Hacks . | . . . . . Repair Station Hacks . | . . . . . Recycling Unit Hacks 5 | . 4 . 1 . Recycle Component 1 | . 1 . . . Process 2 | . 2 . . . Retrieve Matter 2 | . 1 . 1 . Scanalyzer 9 | . . . 9 . Insert Component 5 | . . . 5 . Analyze 4 | . . . 4 . Garrison Access Hacks . | . . . . . Unauthorized Hacks . | . . . . . Terminals . | . . . . . Fabricators . | . . . . . Repair Stations . | . . . . . Recycling Units . | . . . . . Scanalyzers . | . . . . . Garrison Access . | . . . . . Data Cores Recovered . | . . . . . Used . | . . . . . Hacking Detections 5 | . 3 . 2 . Full Trace Events 3 | . 2 . 1 . Feedback Events . | . . . . . Feedback Blocked . | . . . . . Robot Schematics Acquired . | . . . . . Robots Built . | . . . . . Authchips . | . . . . . Time . | . . . . . Total Robot Build Rating . | . . . . . Part Schematics Acquired 3 | . . . 3 . Parts Built . | . . . . . Authchips . | . . . . . Time . | . . . . . Total Part Build Rating . | . . . . . Parts Repaired . | . . . . . Time . | . . . . . Parts Recycled 1 | . 1 . . . Recycled Matter 36 | . 36 . . . Retrieved Matter 36 | . 36 . . . Retrieved Components . | . . . . . Parts Scanalyzed 4 | . . . 4 . Part Schematics Acquired 3 | . . . 3 . Parts Damaged . | . . . . . Bothacking | -11 -10 -10 -9 -8 ------------ Run | Yrd Mat Min Mat Mat Used RIF Installer . | . . . . . Robots Hacked . | . . . . . Non-combat . | . . . . . Combat . | . . . . . Robot Hacks Applied . | . . . . . Relay Couplers Released . | . . . . . Fabnet Peak Effective % . | . . . . . Robots Rewired . | . . . . . Allies Hacked . | . . . . . Hacks Repelled . | . . . . . Allies | -11 -10 -10 -9 -8 -------- Run | Yrd Mat Min Mat Mat Total Allies 2 | . . 2 . . Largest Group 2 | . . 2 2 . Highest-Rated Group 38 | . . 38 38 . Highest-Rated Ally 31 | . . 31 31 . Total Orders . | . . . . . Ally Attacks 42 | . . 1 41 . Total Damage 418 | . . . 418 . Kills 11 | . . . 11 . Allies Corrupted . | . . . . . Allies Melted . | . . . . . Intel | -11 -10 -10 -9 -8 ------- Run | Yrd Mat Min Mat Mat Robot Analysis Total . | . . . . . Derelict Logs Recovered 1 | . . 1 . . Drone Launches . | . . . . . Drone Recoveries . | . . . . . Exploration | -11 -10 -10 -9 -8 ------------- Run | Yrd Mat Min Mat Mat Turns Passed 1828 | 74 281 191 910 372 Spaces Moved 1168 | 77 291 228 466 106 Core 21 | 19 . . . 2 Treads . | . . . . . Legs 287 | . . . 183 104 Wheels 860 | 58 291 228 283 . Hover . | . . . . . Flight . | . . . . . Fastest Speed 50 | 50 80 80 95 190 Average Speed 121 | 72 80 80 159 197 Slowest Speed 550 | 80 80 80 260 550 Overloaded Moves . | . . . . . Propulsion Burnouts . | . . . . . Robots Hopped . | . . . . . Cave-ins Triggered . | . . . . . Exploration Rate (%) 38 | 9 54 81 39 11 Regions Visited 4 Branch Regions 1 Pre-discovered Areas . | . . . . . Known Exits Taken . | . . . . . Unknown Exits Taken 4 | 1 1 1 1 . Scrap Searched 1 | . . 1 . . Spaces Dug . | . . . . . Terrain Destroyed 121 | . 76 19 26 . Melee . | . . . . . Projectile . | . . . . . AOE 121 | . 76 19 26 . Terrain Rammed . | . . . . . Walls Destroyed . | . . . . . Machines Disabled . | . . . . . Actions | -11 -10 -10 -9 -8 --------- Run | Yrd Mat Min Mat Mat Total 1398 | 91 324 232 558 193 Wait 46 | 1 8 . 19 18 Move 1164 | 76 290 227 465 106 Hop . | . . . . . Pick Up 35 | 6 8 1 16 4 Fast Attach 3 | . 2 . . 1 Attach 22 | 6 3 . 7 6 Detach 4 | . 2 . 1 1 Swap 6 | . . 1 5 . Drop 10 | . 3 1 5 1 Fire 103 | 2 8 2 38 53 Melee . | . . . . . Ram 1 | . . . 1 . Kick 4 | . . . 1 3 Crush . | . . . . . Escape Stasis . | . . . . . Rewire . | . . . . . Trap . | . . . . . Miscellaneous . | . . . . . Route ------- -11/Scrapyard -10/Materials (discovered 2 exits: *Mat / [*Min]) -10/Mines -9/Materials -8/Materials History --------- Turn | Location | Event 2 | -11/Scrapyard | Met Revision 17 52 | -11/Scrapyard | Discovered new exit (range 8) 75 | -11/Scrapyard | Entered Materials 299 | -10/Materials | Discovered new exit (range 12) 311 | -10/Materials | Build established: Mutant 348 | -10/Materials | Discovered new exit (range 8) 356 | -10/Materials | Entered Mines 449 | -10/Mines | Learned Materials terminal intel 528 | -10/Mines | Discovered new exit (range 14) 547 | -10/Mines | Entered Materials 547 | -9/Materials | Accompanied by 2 allies 547 | -9/Materials | Evolved 2 slots: Utility x2 548 | -9/Materials | Loaded intel: 12 terminal locations 552 | -9/Materials | Led the pair of lost Derelicts to an unsafe place 1258 | -9/Materials | Discovered new exit (range 9) 1347 | -9/Materials | First assault squad dispatched 1457 | -9/Materials | Entered another Materials area 1457 | -8/Materials | Evolved 2 slots: Power x1, Weapon x1 1468 | -8/Materials | Found Powered Armor 1472 | -8/Materials | Found Powered Armor 1810 | -8/Materials | Garrison activated, responded to threat 1814 | -8/Materials | Core integrity fell below 50% 1824 | -8/Materials | Core integrity fell below 20% 1829 | -8/Materials | Destroyed by G-47 Trooper with Particle Gun Last Messages --------------- [Achievement: Troublemaker] Electrolysis Chamber disabled. K-01 Serf collects debris. Penetrated by Slug. Knocked back. Lrg. Storage Unit destroyed. K-01 Serf collects debris. Knocked back. K-01 Serf collects debris. Y-45 Defender destroyed. Minigun destroyed. K-01 Serf collects debris. Acquired Hvy. Assault Rifle. Hvy. Assault Rifle blasted off. Knocked back. K-01 Serf collects debris. Critical hit (Burn: +37). K-01 Serf destroyed. Hvy. Assault Rifle destroyed. Knocked back. Map ----- +----------------------------------------------------+ | ???????????????????????????? ????????????????????? | | ????????????????????????????*????????????????????? | | ?????????????? #???????????! ???????????????????? | | ?????????????? ?????????? ???????????????????? | | ?????????????? ?????????? ???????????????????? | | ?????????????? #???????""" ???????? ?????????? | | ?????????????# #????????"" ??????? ??????????? | | ?????????????# #????????"" ??????? ???????????? | | ?????????????# #???????? ????? #????????????? | | ????????????## #????????#+#???? #????????????? | | ????????????# #???###### #???# #????????????? | | ????????????# #####"T"## ####" #######??????? | | ????????????# % = ?????? | | ????????????# ?????? | | ????????????# """ !!! [! ?????? | | ????????????# """ !!! ######????????????? | | ???????###### """ !![ = #?????????????????? | | ???????# = ##????????????????? | | ???????#=!#### H=! +????????????? | | ??????## #??#+#####;#;/%!=#+########????????????? | | ??????#* #?????????# Yg%[# #???????????????? | | ###### #?????????#" %[!# "" #???????????????? | | #?????????#"""g[!% "" #???????????????? | | ###### #?????????#"""[[!# "T #???????????????? | | ??????# #?????????# # "" #???????????????? | | ??????# =#?????????# % @ #?"" #???????????????? | | ??????# #?????????########?? #???????????????? | | ??????# #????????????????????" #???????????????? | | ??????# #???###??????????????? ????????????????? | | ####??# #?? #????????????????????????????????? | | !!!#??#[ #?? #????????????????????????????????? | | !!#??# #? #????????????????????????????????? | | #??# #?""" #????????????????????????????????? | | #### # """ #????????????????????????????????? | | # """ #????????????????????????????????? | | + #????????????????????????????????? | | # #????????????????????????????????? | | #### # " " #????????????????????????????????? | | #??# #?"G" #????????????????????????????????? | | #??# #?""" #????????????????????????????????? | | #??# #?? #????????????????????????????????? | | #??# #??###?????????????????????????????????? | | #??# #??????????????????????????????????????? | | #??# #??????????????????????????????????????? | | # ##?? ??????????????????????????????????????? | | ??? ??????????????????????????????????????? | | #??? ?????????????????????????????????????? | | ##???# ?????????????????????????????????????? | | ?????# ##????????????????????????????????????? | | ?????### ##?????????????????????????????????????? | +----------------------------------------------------+ Best States ------------- Heat Dissipation 41 Energy Generation 10 Energy Capacity 250 Matter Stores 300 Matter Capacity 300 Sight Range 16 Terrain Scan Density 10 Armor Coverage 400 Core Shielding 20 Evasion (%) 50 Targeting Accuracy 6 Item Schematics ----------------- Lgt. Assault Rifle | -9/Materials | Scanalyzed Structural Scanner | -9/Materials | Scanalyzed Terrain Scanner | -9/Materials | Scanalyzed Robot Schematics ------------------ None Fabricated ------------ Nothing Alien Tech Used ----------------- None Achievements -------------- Backstab Hey, That's Mine! Loot Pinata Significant Disruption Storm Trooper Troublemaker Challenges ------------ None Game ------ Seed SurveybotSegregatorFalx Manual? 0 Play Time 00:28:03 Cumulative 0.7 hours Start 2024.04.01 @ 22:06:31 End 2024.04.01 @ 22:34:42 Sessions 1 Manual Loads 0 Difficulty Rogue Special Mode None Game No. 2 Rogue 2 Adventurer 0 Explorer 0 Win Type - Total 0 Types 0/0/0/0/0/0/0/0/0 Lore% 0 Gallery% 2 Achievement% 5 Wizard Run 0 Options --------- Layout 1 ASCII 0 Keyboard 0 Movement Mouse Keybinds 0 Fullscreen 1 Font 24/Smallcaps Map View 50x35 Zoom Use 0% Tactical HUD 0 Map Filters NONE Filters NONE Steam 1 RUN: 3ba51106-9903-4145-9285-5177b299f169